fUSD/lending_fUSD_20260202
["ID","MTS","AMOUNT","RATE_DAILY","PERIOD"]
[404282652,1770029432319,-151.0,0.00012329,2]
[404282653,1770029432328,-150.0,0.00012331,2]
[404282654,1770029432337,-217.33784522,0.00012331,2]
[404282655,1770029432346,-393.81156927,0.00012331,2]
[404282656,1770029432355,-207.06690684,0.00012331,2]
[404282658,1770029432365,-152.13649165,0.00012331,2]
[404282660,1770029432374,-58271.55716588,0.00012332,2]
[404282662,1770029432385,-66887.61536568,0.00012332,2]
[404282665,1770029432400,-99307.88348324,0.00012332,2]
[404282893,1770029437816,-6187.95,0.00012332,2]
[404282895,1770029439810,-1533.41577175,0.00012332,2]
[404282896,1770029439921,-1.7e-07,0.00012332,2]
[404282897,1770029440303,-2667811.57821328,0.00012332,2]
[404282898,1770029440313,-250.52896875,0.00012339,2]
[404282899,1770029440321,-500.0,0.00012339,2]
[404282900,1770029440331,-354.76107445,0.00012339,2]
[404282901,1770029440339,-456.44868677,0.00012339,2]
[404282902,1770029440349,-500.0,0.00012339,2]
[404282903,1770029440358,-500.0,0.00012339,2]
[404282904,1770029440367,-150.0,0.00012339,2]
[404282905,1770029440376,-500.0,0.00012339,2]
[404282906,1770029440386,-500.0,0.00012339,2]
[404282908,1770029440395,-257.13669619,0.00012339,2]
[404282910,1770029440406,-500.0,0.00012339,2]
[404282912,1770029440415,-500.0,0.00012339,2]
[404282914,1770029440424,-500.0,0.00012393,2]
[404282916,1770029440433,-500.0,0.00012393,2]
[404282918,1770029440442,-500.0,0.00012393,2]
[404282920,1770029440451,-150.0,0.00012393,2]
[404282922,1770029440460,-500.0,0.00012393,2]
[404282924,1770029440469,-500.0,0.00012393,2]
[404282926,1770029440478,-500.0,0.00012393,2]
[404282928,1770029440487,-500.0,0.00012393,2]
[404282930,1770029440495,-9999.99,0.0001241,2]
[404282932,1770029440504,-150.99,0.0001241,2]
[404282934,1770029440514,-9999.99,0.00012431,2]
[404282936,1770029440523,-9999.99,0.00012431,2]
[404282938,1770029440532,-9999.99,0.00012431,2]
[404282940,1770029440545,-299.99,0.00012432,2]
[404282942,1770029440554,-150.99,0.00012432,2]
[404282944,1770029440563,-999.99,0.00012432,2]
[404282946,1770029440572,-500.0,0.00012448,2]
[404282948,1770029440583,-500.0,0.00012448,2]
[404282950,1770029440592,-500.0,0.00012448,2]
[404282952,1770029440601,-282.97813088,0.00012448,2]
[404282954,1770029440611,-316.97590661,0.00012448,2]
[404282956,1770029440620,-500.0,0.00012448,2]
[404282957,1770029440629,-500.0,0.00012448,2]
[404282959,1770029440639,-500.0,0.00012448,2]
[404282960,1770029440649,-2721.114,0.00012483,2]
[404282961,1770029440659,-175.102,0.00012483,2]
[404282962,1770029440667,-32299.10361216,0.000125,2]
[404282963,1770029440676,-151.0,0.00012503,2]
[404282964,1770029440686,-500.0,0.00012503,2]
[404282965,1770029440695,-151.0,0.00012503,2]
[404282966,1770029440704,-151.0,0.00012503,2]
[404282967,1770029440713,-151.0,0.00012503,2]
[404282968,1770029440722,-151.0,0.00012503,2]
[404282969,1770029440731,-151.0,0.00012503,2]
[404282970,1770029440740,-151.0,0.00012503,2]
[404282971,1770029440749,-151.0,0.00012503,2]
[404282972,1770029440759,-151.0,0.00012503,2]
[404282974,1770029440768,-151.0,0.00012503,2]
[404282975,1770029440778,-151.0,0.00012503,2]
[404282976,1770029440787,-500.0,0.00012503,2]
[404282977,1770029440796,-500.0,0.00012503,2]
[404282978,1770029440805,-500.0,0.00012503,2]
[404282979,1770029440814,-500.0,0.00012503,2]
[404282980,1770029440824,-500.0,0.00012503,2]
[404282981,1770029440833,-500.0,0.00012503,2]
[404282982,1770029440842,-500.0,0.00012503,2]
[404282983,1770029440851,-500.0,0.00012503,2]
[404282984,1770029440861,-500.0,0.00012503,2]
[404282985,1770029440870,-500.0,0.00012503,2]
[404282986,1770029440879,-500.0,0.00012503,2]
[404282987,1770029440889,-500.0,0.00012503,2]
[404282988,1770029440898,-500.0,0.00012503,2]
[404282989,1770029440908,-500.0,0.00012503,2]
[404282990,1770029440917,-500.0,0.00012503,2]
[404282991,1770029440926,-500.0,0.00012503,2]
[404282992,1770029440937,-500.0,0.00012503,2]
[404282993,1770029440946,-500.0,0.00012503,2]
[404282994,1770029440955,-500.0,0.00012503,2]
[404282995,1770029440964,-500.0,0.00012503,2]
[404282996,1770029440974,-500.0,0.00012503,2]
[404282997,1770029440984,-500.0,0.00012503,2]
[404282998,1770029440994,-202.25964161,0.00012503,2]
[404282999,1770029441003,-151.0,0.00012503,2]
[404283000,1770029441012,-151.0,0.00012503,2]
[404283001,1770029441021,-151.0,0.00012503,2]
[404283002,1770029441030,-151.0,0.00012503,2]
[404283003,1770029441040,-151.0,0.00012503,2]
[404283004,1770029441051,-151.0,0.00012503,2]
[404283005,1770029441062,-151.0,0.00012503,2]
[404283006,1770029441072,-151.0,0.00012503,2]
[404283007,1770029441082,-151.0,0.00012503,2]
[404283008,1770029441091,-151.0,0.00012503,2]
[404283009,1770029441101,-151.0,0.00012503,2]
[404283010,1770029441112,-151.0,0.00012503,2]
[404283011,1770029441122,-151.0,0.00012503,2]
[404283012,1770029441132,-151.0,0.00012503,2]
[404283013,1770029441142,-151.0,0.00012503,2]
[404283014,1770029441151,-151.0,0.00012503,2]
[404283015,1770029441161,-151.0,0.00012503,2]
[404283016,1770029441170,-151.0,0.00012503,2]
[404283017,1770029441179,-151.0,0.00012503,2]
[404283018,1770029441189,-151.0,0.00012503,2]
[404283019,1770029441199,-500.0,0.00012503,2]
[404283020,1770029441208,-500.0,0.00012503,2]
[404283021,1770029441217,-500.0,0.00012503,2]
[404283022,1770029441227,-500.0,0.00012503,2]
[404283023,1770029441237,-206.36581695,0.00012503,2]
[404283024,1770029441245,-199.24021692,0.00012513,2]
[404283025,1770029441255,-7719.25534853,0.00012513,2]
[404283026,1770029441264,-500.0,0.00012558,2]
[404283027,1770029441274,-500.0,0.00012558,2]
[404283028,1770029441283,-166.66,0.00012564,2]
[404283029,1770029441293,-1000.0,0.00012596,2]
[404283030,1770029441302,-240098.1886,0.00012596,2]
[404283031,1770029441311,-500.0,0.00012613,2]
[404283032,1770029441320,-500.0,0.00012613,2]
[404283033,1770029441330,-500.0,0.00012667,2]
[404283034,1770029441339,-514.39371014,0.00012667,2]
[404283035,1770029441348,-250.0,0.0001268,2]
[404283036,1770029441357,-500.0,0.0001268,2]
[404283037,1770029441366,-500.0,0.00012722,2]
[404283038,1770029441375,-13949.07,0.00012739,2]
[404283039,1770029441384,-300.0,0.00012761,2]
[404283040,1770029441393,-250.0,0.00012761,2]
[404283041,1770029441403,-500.0,0.00012777,2]
[404283042,1770029441413,-541.5046,0.00012867,2]
[404283043,1770029441422,-18151.4089598,0.0001292,2]
[404283044,1770029441431,-16905.2451747,0.00012927,2]
[404283045,1770029441441,-166.66,0.00012953,2]
[404283046,1770029441450,-162.33,0.00012999,2]
[404283047,1770029441459,-500.0,0.00013051,2]
[404283048,1770029441468,-152.49,0.00013051,2]
[404283049,1770029441477,-300.0,0.00013051,2]
[404283050,1770029441486,-420.0,0.00013051,2]
[404283051,1770029441495,-1680.0,0.00013075,2]
[404283052,1770029441504,-96494.30306844,0.00013124,2]
[404283053,1770029441513,-703.13852903,0.00013197,2]
[404283054,1770029441522,-166.66,0.00013342,2]
[404283055,1770029441531,-255.0,0.00013416,2]
[404283056,1770029441543,-150.0,0.00013424,2]
[404283057,1770029441553,-150.0,0.00013424,2]
[404283058,1770029441562,-8306.0,0.00013424,2]
[404283059,1770029441571,-150.0,0.00013424,2]
[404283060,1770029441582,-500.0,0.00013424,2]
[404283061,1770029441591,-3240.0,0.00013425,2]
[404283062,1770029441600,-1870.0,0.00013427,2]
[404283063,1770029441609,-674.0,0.00013454,2]
[404283064,1770029441620,-166.03286464,0.00013479,2]
[404283065,1770029441629,-150.0,0.00013479,2]
[404283066,1770029441638,-8306.0,0.00013479,2]
[404283067,1770029441647,-154.11430393,0.00013479,2]
[404283068,1770029441657,-500.0,0.00013479,2]
[404283069,1770029441666,-18151.4089598,0.0001353,2]
[404283070,1770029441675,-150.0,0.00013534,2]
[404283071,1770029441684,-8306.0,0.00013534,2]
[404283072,1770029441694,-500.0,0.00013534,2]
[404283073,1770029441703,-16905.2451747,0.00013545,2]
[404283074,1770029441712,-150.0,0.00013588,2]
[404283075,1770029441722,-8306.0,0.00013588,2]
[404283076,1770029441731,-500.0,0.00013588,2]
[404283077,1770029441740,-500.0,0.00013599,2]
[404283078,1770029441750,-438.3153895,0.00013636,2]
[404283079,1770029441759,-150.0,0.00013643,2]
[404283080,1770029441769,-8306.0,0.00013643,2]
[404283081,1770029441779,-500.0,0.00013643,2]
[404283082,1770029441788,-192.49583796,0.00013688,2]
[404283083,1770029441797,-226.74400397,0.00013698,2]
[404283084,1770029441806,-8306.0,0.00013698,2]
[404283085,1770029441815,-500.0,0.00013698,2]
[404283086,1770029441826,-500.0,0.00013698,2]
[404283087,1770029441835,-500.0,0.00013698,2]
[404283088,1770029441844,-500.0,0.00013698,2]
[404283089,1770029441853,-500.0,0.00013698,2]
[404283090,1770029441862,-500.0,0.00013698,2]
[404283091,1770029441871,-500.0,0.00013698,2]
[404283092,1770029441881,-500.0,0.00013698,2]
[404283093,1770029441890,-500.0,0.00013698,2]
[404283094,1770029441899,-500.0,0.00013698,2]
[404283095,1770029441909,-500.0,0.00013698,2]
[404283096,1770029441919,-500.0,0.00013698,2]
[404283097,1770029441928,-500.0,0.00013698,2]
[404283098,1770029441937,-159.30915247,0.00013698,2]
[404283099,1770029441946,-500.0,0.00013698,2]
[404283100,1770029441955,-500.0,0.00013698,2]
[404283101,1770029441964,-500.0,0.00013698,2]
[404283102,1770029441973,-500.0,0.00013698,2]
[404283103,1770029441982,-500.0,0.00013698,2]
[404283104,1770029441991,-500.0,0.00013698,2]
[404283105,1770029442000,-500.0,0.00013698,2]
[404283106,1770029442010,-500.0,0.00013698,2]
[404283107,1770029442018,-500.0,0.00013698,2]
[404283108,1770029442029,-504.83472388,0.00013698,2]
[404283109,1770029442038,-500.0,0.00013698,2]
[404283110,1770029442047,-500.0,0.00013698,2]
[404283111,1770029442055,-500.0,0.00013698,2]
[404283112,1770029442064,-500.0,0.00013698,2]
[404283113,1770029442073,-500.0,0.00013698,2]
[404283114,1770029442083,-500.0,0.00013698,2]
[404283115,1770029442092,-500.0,0.00013698,2]
[404283116,1770029442101,-500.0,0.00013698,2]
[404283117,1770029442110,-500.0,0.00013698,2]
[404283118,1770029442118,-519.14978785,0.00013698,2]
[404283119,1770029442127,-500.0,0.00013698,2]
[404283120,1770029442136,-500.0,0.00013698,2]
[404283121,1770029442145,-500.0,0.00013698,2]
[404283122,1770029442154,-500.0,0.00013698,2]
[404283123,1770029442352,-277.632,0.00013698,2]
[404283124,1770029442362,-506.4463116,0.00013698,2]
[404283125,1770029442371,-500.0,0.00013698,2]
[404283126,1770029442380,-503.69401691,0.00013698,2]
[404283127,1770029442389,-500.0,0.00013698,2]
[404283128,1770029442397,-500.0,0.00013698,2]
[404283129,1770029442407,-500.0,0.00013698,2]
[404283130,1770029442416,-500.0,0.00013698,2]
[404283131,1770029442425,-500.0,0.00013698,2]
[404283133,1770029442435,-500.0,0.00013698,2]
[404283135,1770029442444,-500.0,0.00013698,2]
[404283136,1770029442453,-500.0,0.00013698,2]
[404283137,1770029442462,-500.0,0.00013698,2]
[404283138,1770029442470,-500.0,0.00013698,2]
[404283139,1770029442479,-500.0,0.00013698,2]
[404283140,1770029442488,-500.0,0.00013698,2]
[404283141,1770029442497,-500.0,0.00013698,2]
[404283142,1770029442505,-500.0,0.00013698,2]
[404283143,1770029442515,-587.5541255,0.00013698,2]
[404283144,1770029442523,-523.26417397,0.00013698,2]
[404283145,1770029442532,-500.0,0.00013698,2]
[404283146,1770029442545,-500.0,0.00013698,2]
[404283147,1770029442554,-500.0,0.00013698,2]
[404283148,1770029442563,-500.0,0.00013698,2]
[404283149,1770029442572,-352.84918147,0.00013698,2]
[404283150,1770029442583,-500.0,0.00013698,2]
[404283151,1770029442594,-496.93460441,0.00013698,2]
[404283152,1770029442604,-9999.99,0.00013699,2]
[404283153,1770029442617,-1229.84,0.00013699,2]
[404283154,1770029442627,-150.0,0.00013699,2]
[404283155,1770029442637,-500.0,0.00013699,2]
[404283156,1770029442647,-150.4373073,0.00013699,2]
[404283157,1770029442658,-150.0,0.00013699,2]
[404283158,1770029442667,-500.0,0.00013699,2]
[404283159,1770029442677,-500.0,0.00013699,2]
[404283160,1770029442687,-150.0,0.00013699,2]
[404283161,1770029442697,-500.0,0.00013699,2]
[404283162,1770029442707,-500.0,0.00013699,2]
[404283163,1770029442717,-150.0,0.00013699,2]
[404283164,1770029442727,-150.0,0.00013699,2]
[404283165,1770029442735,-150.0,0.00013699,2]
[404283166,1770029442745,-500.0,0.00013699,2]
[404283167,1770029442754,-150.0,0.00013699,2]
[404283168,1770029442763,-691.55,0.000137,2]
[404283169,1770029442773,-691.55,0.000137,2]
[404283170,1770029442782,-691.55,0.000137,2]
[404283171,1770029442792,-691.55,0.000137,2]
[404283172,1770029442802,-691.55,0.000137,2]
[404283173,1770029442811,-166.66,0.00013731,2]
[404283174,1770029442821,-8306.0,0.00013753,2]
[404283175,1770029442832,-150.0,0.00013753,2]
[404283176,1770029442842,-150.0,0.00013754,2]
[404283177,1770029442851,-500.0,0.00013754,2]
[404283178,1770029442860,-150.0,0.00013754,2]
[404283179,1770029442869,-500.0,0.00013754,2]
[404283180,1770029442879,-500.0,0.00013754,2]
[404283181,1770029442888,-150.0,0.00013754,2]
[404283182,1770029442897,-500.0,0.00013754,2]
[404283183,1770029442907,-500.0,0.00013754,2]
[404283184,1770029442916,-150.0,0.00013754,2]
[404283185,1770029442926,-150.0,0.00013754,2]
[404283186,1770029442935,-150.0,0.00013754,2]
[404283187,1770029442944,-500.0,0.00013754,2]
[404283188,1770029442953,-150.0,0.00013754,2]
[404283189,1770029442962,-8306.0,0.00013808,2]
[404283190,1770029442971,-150.0,0.00013809,2]
[404283191,1770029442980,-500.0,0.00013809,2]
[404283192,1770029442989,-150.0,0.00013809,2]
[404283193,1770029442999,-500.0,0.00013809,2]
[404283194,1770029443009,-569.21162373,0.00013809,2]
[404283195,1770029443019,-150.0,0.00013809,2]
[404283196,1770029443028,-500.0,0.00013809,2]
[404283197,1770029443037,-150.0,0.00013809,2]
[404283198,1770029443046,-548.08731584,0.00013809,2]
[404283199,1770029443055,-215.60722138,0.00013809,2]
[404283200,1770029443063,-155.36591009,0.00013809,2]
[404283201,1770029443072,-500.0,0.00013809,2]
[404283202,1770029443081,-150.0,0.00013809,2]
[404283203,1770029443090,-8306.0,0.00013862,2]
[404283204,1770029443099,-200.0,0.00013863,2]
[404283205,1770029443108,-500.0,0.00013863,2]
[404283206,1770029443117,-179.32668848,0.00013863,2]
[404283207,1770029443127,-500.0,0.00013863,2]
[404283208,1770029443136,-169.35603716,0.00013863,2]
[404283209,1770029443146,-500.0,0.00013863,2]
[404283210,1770029443157,-235.58915604,0.00013863,2]
[404283211,1770029443166,-500.0,0.00013863,2]
[404283212,1770029443176,-150.0,0.00013863,2]
[404283213,1770029443185,-8306.0,0.00013917,2]
[404283214,1770029443194,-500.0,0.00013918,2]
[404283215,1770029443204,-500.0,0.00013918,2]
[404283217,1770029443213,-506.61162713,0.00013918,2]
[404283218,1770029443223,-158.43558998,0.00013918,2]
[404283219,1770029443231,-150.0,0.00013918,2]
[404283220,1770029443242,-414.36772183,0.0001396,2]
[404283222,1770029443251,-8306.0,0.00013972,2]
[404283223,1770029443260,-500.88887474,0.00013973,2]
[404283225,1770029443270,-500.125501,0.00013973,2]
[404283227,1770029443279,-501.73498825,0.00013973,2]
[404283228,1770029443288,-500.0,0.00013973,2]
[404283229,1770029443297,-500.0,0.00013973,2]
[404283232,1770029443306,-500.0,0.00013973,2]
[404283234,1770029443315,-500.0,0.00013973,2]
[404283236,1770029443324,-500.0,0.00013973,2]
[404283237,1770029443333,-500.7756559,0.00013973,2]
[404283238,1770029443342,-177.72668829,0.00013973,2]
[404283239,1770029443351,-501.3792678,0.00013973,2]
[404283240,1770029443361,-500.0,0.00013973,2]
[404283241,1770029443370,-500.0,0.00013973,2]
[404283242,1770029443380,-500.0,0.00013973,2]
[404283243,1770029443389,-407.76648186,0.00013973,2]
[404283244,1770029443399,-169.68447442,0.00013973,2]
[404283245,1770029443411,-217.67941742,0.00013973,2]
[404283246,1770029443420,-500.0,0.00013973,2]
[404283247,1770029443429,-500.0,0.00013973,2]
[404283248,1770029443439,-500.0,0.00013973,2]
[404283249,1770029443448,-500.0,0.00013973,2]
[404283250,1770029443457,-500.0,0.00013973,2]
[404283251,1770029443466,-500.0,0.00013973,2]
[404283252,1770029443475,-503.39541784,0.00013973,2]
[404283253,1770029443484,-500.0,0.00013973,2]
[404283254,1770029443493,-319.40810166,0.00013973,2]
[404283255,1770029443503,-500.0,0.00013973,2]
[404283256,1770029443512,-500.0,0.00013973,2]
[404283257,1770029443521,-500.0,0.00013973,2]
[404283258,1770029443531,-500.0,0.00013973,2]
[404283259,1770029443542,-207.33206215,0.00013973,2]
[404283260,1770029443551,-8306.0,0.00014027,2]
[404283261,1770029443561,-8306.0,0.00014082,2]
[404283262,1770029443571,-8306.0,0.00014136,2]
[404283263,1770029443581,-703.13852903,0.00014137,2]
[404283264,1770029443590,-18151.4089598,0.0001414,2]
[404283265,1770029443599,-500.0,0.00014147,2]
[404283266,1770029443608,-16905.2451747,0.00014162,2]
[404283267,1770029443620,-8306.0,0.00014191,2]
[404283268,1770029443630,-558.24423445,0.00014206,2]
[404283269,1770029443640,-8306.0,0.00014246,2]
[404283270,1770029443650,-8306.0,0.00014301,2]
[404283271,1770029443661,-341.0,0.00014328,2]
[404283272,1770029443670,-8306.0,0.00014356,2]
[404283273,1770029443679,-2351.0,0.00014383,2]
[404283274,1770029443688,-8306.0,0.0001441,2]
[404283275,1770029443697,-151.0,0.0001442,2]
[404283276,1770029443707,-151.0,0.0001442,2]
[404283277,1770029443715,-151.0,0.00014428,2]
[404283278,1770029443724,-151.0,0.00014428,2]
[404283279,1770029443733,-151.0,0.00014429,2]
[404283280,1770029443742,-8306.0,0.00014465,2]
[404283281,1770029443751,-433.74341347,0.00014479,2]
[404283282,1770029443761,-8306.0,0.0001452,2]
[404283283,1770029443770,-1000.0,0.00014521,2]
[404283284,1770029443779,-463.7080185,0.00014521,2]
[404283285,1770029443788,-1000.0,0.00014521,2]
[404283286,1770029443798,-845.5316297,0.00014521,2]
[404283287,1770029443807,-500.0,0.00014521,2]
[404283288,1770029443816,-1142.79089811,0.00014521,2]
[404283289,1770029443825,-445.7560689,0.00014521,2]
[404283290,1770029443835,-504.42982336,0.00014521,2]
[404283291,1770029443844,-500.0,0.00014521,2]
[404283292,1770029443853,-1061.85744553,0.00014521,2]
[404283293,1770029443862,-1000.0,0.00014521,2]
[404283294,1770029443871,-1002.39079139,0.00014521,2]
[404283295,1770029443880,-8306.0,0.00014575,2]
[404283296,1770029443889,-433.0,0.000146,2]
[404283297,1770029443898,-8306.0,0.00014629,2]
[404283298,1770029443908,-8306.61609587,0.00014684,2]
[404283299,1770029443917,-500.0,0.00014695,2]
[404283300,1770029443927,-18151.4089598,0.0001475,2]
[404283301,1770029443936,-16905.2451747,0.00014779,2]
[404283302,1770029443945,-343.71080032,0.00014886,2]
[404283303,1770029443954,-907.05824007,0.00014886,2]
[404283304,1770029443963,-1600.15825253,0.00014886,2]
[404283305,1770029443972,-179.20533301,0.00015068,2]
[404283306,1770029443981,-1500.0,0.00015068,2]
[404283307,1770029443990,-1500.0,0.00015068,2]
[404283308,1770029443999,-900.0,0.00015068,2]
[404283309,1770029444009,-703.13852903,0.00015078,2]
[404283310,1770029444019,-7719.25534853,0.00015207,2]
[404283311,1770029444029,-500.0,0.00015243,2]
[404283312,1770029444039,-250.0,0.00015328,2]
[404283313,1770029444050,-18151.4089598,0.0001536,2]
[404283314,1770029444061,-16905.2451747,0.00015397,2]
[404283315,1770029444071,-500.0,0.00015425,2]
[404283316,1770029444081,-502.28798495,0.00015473,2]
[404283317,1770029444091,-500.0,0.00015473,2]
[404283318,1770029444101,-500.0,0.00015473,2]
[404283319,1770029444112,-500.0,0.00015473,2]
[404283320,1770029444122,-500.0,0.00015473,2]
[404283321,1770029444131,-500.0,0.00015473,2]
[404283322,1770029444143,-500.0,0.00015473,2]
[404283323,1770029444153,-500.0,0.00015473,2]
[404283324,1770029444162,-500.0,0.00015473,2]
[404283325,1770029444172,-501.09302375,0.00015473,2]
[404283326,1770029444182,-500.0,0.00015473,2]
[404283327,1770029444191,-500.0,0.00015473,2]
[404283328,1770029444200,-500.0,0.00015473,2]
[404283329,1770029444209,-500.0,0.00015473,2]
[404283330,1770029444219,-501.94112039,0.00015473,2]
[404283331,1770029444228,-500.0,0.00015473,2]
[404283332,1770029444237,-500.0,0.00015473,2]
[404283333,1770029444246,-500.0,0.00015473,2]
[404283334,1770029444255,-500.0,0.00015473,2]
[404283335,1770029444264,-500.0,0.00015473,2]
[404283336,1770029444273,-500.0,0.00015473,2]
[404283337,1770029444282,-500.0,0.00015473,2]
[404283338,1770029444292,-500.0,0.00015473,2]
[404283339,1770029444301,-500.0,0.00015473,2]
[404283341,1770029444310,-500.0,0.00015473,2]
[404283343,1770029444319,-500.0,0.00015473,2]
[404283345,1770029444328,-500.62937167,0.00015473,2]
[404283347,1770029444337,-500.0,0.00015473,2]
[404283348,1770029444346,-500.0,0.00015473,2]
[404283351,1770029444355,-500.0,0.00015473,2]
[404283353,1770029444365,-500.0,0.00015473,2]
[404283355,1770029444374,-586.45296103,0.00015473,2]
[404283356,1770029444383,-500.0,0.00015473,2]
[404283357,1770029444393,-500.0,0.00015473,2]
[404283358,1770029444403,-500.0,0.00015473,2]
[404283359,1770029444413,-501.08336444,0.00015473,2]
[404283360,1770029444422,-291.61164288,0.00015473,2]
[404283361,1770029444431,-500.0,0.00015473,2]
[404283362,1770029444440,-500.0,0.00015473,2]
[404283363,1770029444449,-501.89927416,0.00015473,2]
[404283364,1770029444460,-157.58038737,0.00015473,2]
[404283365,1770029444468,-500.0,0.00015473,2]
[404283366,1770029444477,-500.0,0.00015473,2]
[404283367,1770029444486,-500.0,0.00015473,2]
[404283368,1770029444495,-500.0,0.00015473,2]
[404283369,1770029444504,-500.0,0.00015473,2]
[404283370,1770029444516,-500.0,0.00015473,2]
[404283371,1770029444525,-500.0,0.00015473,2]
[404283372,1770029444535,-162.33,0.00015565,2]
[404283373,1770029444549,-277.64620196,0.00015616,2]
[404283374,1770029444560,-392.5604124,0.00015616,2]
[404283375,1770029444571,-152.49,0.00015684,2]
[404283376,1770029444580,-151.0,0.00015781,2]
[404283377,1770029444592,-46638.69,0.00015784,2]
[404283378,1770029444601,-500.0,0.00015791,2]
[404283379,1770029444611,-3292.0,0.00015821,2]
[404283380,1770029444619,-736.0,0.00015882,2]
[404283381,1770029444629,-3992.56342833,0.0001596,2]
[404283382,1770029444638,-18151.4089598,0.0001597,2]
[404283383,1770029444648,-159.99318318,0.00015995,2]
[404283384,1770029444658,-16905.2451747,0.00016014,2]
[404283385,1770029444667,-703.13852903,0.00016019,2]
[404283386,1770029444676,-1000.0,0.00016021,2]
[404283387,1770029444685,-503.91068608,0.00016021,2]
[404283388,1770029444694,-1000.0,0.00016021,2]
[404283389,1770029444703,-1000.0,0.00016021,2]
[404283390,1770029444712,-399.10712823,0.00016021,2]
[404283391,1770029444722,-1000.0,0.00016021,2]
[404283392,1770029444730,-1000.0,0.00016021,2]
[404283393,1770029444739,-1000.0,0.00016021,2]
[404283394,1770029444749,-1000.0,0.00016021,2]
[404283395,1770029444758,-1000.0,0.00016021,2]
[404283396,1770029444767,-1004.30163313,0.00016021,2]
[404283397,1770029444776,-1000.0,0.00016021,2]
[404283398,1770029444785,-1000.0,0.00016021,2]
[404283399,1770029444794,-1018.80564021,0.00016021,2]
[404283400,1770029444803,-503.27979337,0.00016021,2]
[404283401,1770029444812,-1005.38162593,0.00016021,2]
[404283402,1770029444822,-1000.0,0.00016021,2]
[404283403,1770029444830,-1000.0,0.00016021,2]
[404283404,1770029444839,-740.83933027,0.00016021,2]
[404283405,1770029444849,-1000.0,0.00016021,2]
[404283406,1770029444858,-1000.0,0.00016021,2]
[404283407,1770029444866,-1000.0,0.00016021,2]
[404283408,1770029444876,-1000.0,0.00016021,2]
[404283409,1770029444886,-1005.45817911,0.00016021,2]
[404283410,1770029444895,-1000.0,0.00016021,2]
[404283411,1770029444905,-487.31307274,0.00016021,2]
[404283412,1770029444915,-761.27528148,0.00016021,2]
[404283413,1770029444924,-1003.56149344,0.00016021,2]
[404283414,1770029444933,-1000.0,0.00016021,2]
[404283415,1770029444943,-1000.0,0.00016021,2]
[404283416,1770029444952,-1000.0,0.00016021,2]
[404283417,1770029444961,-1000.0,0.00016021,2]
[404283418,1770029444971,-1000.0,0.00016021,2]
[404283419,1770029444979,-1000.0,0.00016021,2]
[404283420,1770029444989,-1000.0,0.00016021,2]
[404283421,1770029444999,-1000.0,0.00016021,2]
[404283422,1770029445008,-162.3164064,0.00016082,2]
[404283423,1770029445017,-305.66548204,0.00016151,2]
[404283424,1770029445026,-151.0,0.00016195,2]
[404283425,1770029445035,-322.6107,0.00016195,2]
[404283426,1770029445044,-209.40437684,0.00016195,2]
[404283427,1770029445053,-277.35679052,0.00016195,2]
[404283428,1770029445062,-209.40437684,0.00016195,2]
[404283429,1770029445072,-859.80605061,0.00016195,2]